[Event "Reykjavik Open 2025"]
[Site "Reykjavik"]
[Date "2025.04.10"]
[Round "3.39"]
[White "Briem, Benedikt"]
[Black "Papp, Gabor"]
[Result "1/2-1/2"]
[Annotator "TA"]
[ECO "E06"]
[WhiteElo "2249"]
[BlackElo "2502"]
[PlyCount "251"]
[EventDate "2025.04.09"]
[EventType "swiss"]
[EventCountry "ISL"]
[SourceTitle "playchess.com"]
[Source "ChessBase"]
[SourceQuality "1"]
[TimeControl "40/5400+30:1800+30"]

{[%evp 58,251,-116,-106,-102,-185,-168,-160,-90,-73,-45,-56,-25,-14,-28,-222,-37,-33,-37,-25,0,0,0,0,0,0,-9,-17,0,0,10,11,18,0,0,0,0,0,0,0,0,0,0,0,0,0,0,-8,-8,-15,-5,-13,-15,-16,-8,-8,0,0,0,-164,-75,-79,-80,-79,-79,-79,-79,-107,-107,-107,-107,-140,-76,-76,-76,-76,-76,-72,-72,-72,-72,-72,-72,-72,-72,-72,-72,-68,-61,-61,-61,-61,-61,-76,-76,-76,-76,-76,-61,-77,-77,-77,-77,-79,-61,-61,-61,-61,-61,-61,-61,-61,-61,-79,-79,-79,-79,-79,-61,-61,-61,-8,-8,-61,-61,-61,-8,-8,-8,-8,-8,-72,-72,-72,-72,-77,-72,-72,-8,-8,-73,-8,-8,-8,0,-8,-8,-8,-8,-8,-8,-8,-8,-8,-8,-8,-8,-8,-8,-8,-8,-8,-8,-8,-8,-8,-8,-8,-8,-8,-8,-8,-8,-8,-8,-8,-8,-8,-8,-8,-8,-8,-8,-8,0,-8,0,-8,0,0,0,0,0,0,0,0]} 1. d4 {[%emt 0:00:05]} Nf6 {[%emt 0:00:23]} 2. c4 {[%emt 0:00:03]} e6 {[%emt 0:00:04]} 3. Nf3 {[%emt 0:00:03]} d5 {[%emt 0:00:12]} 4. g3 {[%emt 0:00:05]} Be7 {[%emt 0:00:04]} 5. Bg2 {[%emt 0:00:05]} O-O {[%emt 0:00:04]} 6. O-O {[%emt 0:00:04]} a5 {[%emt 0:00:34]} 7. Ne5 {[%emt 0:03:49]} c6 {[%emt 0:01:16]} 8. Nc3 {[%emt 0:01:54]} Nfd7 {[%emt 0:01:26]} 9. Nxd7 {[%emt 0:09:32]} Nxd7 {[%emt 0:00:50]} 10. Qd3 {[%emt 0:05:34]} b6 {[%emt 0:07:01]} 11. b3 {[%emt 0:09:46]} Ba6 {[%emt 0:00:45]} 12. Rd1 {[%emt 0:01:12]} Rc8 {[%emt 0:18:38]} 13. Bb2 {[%emt 0:04:31]} Qc7 {[%emt 0:07:56]} 14. Rac1 {[%emt 0:02:24]} Rfd8 {[%emt 0:00:52]} 15. e4 {[%emt 0:02:01]} dxc4 {[%emt 0:01:58]} 16. Qe2 {[%emt 0:02:44]} b5 {[%emt 0:09:32]} 17. bxc4 {[%emt 0:01:57]} bxc4 {[%emt 0:00:17]} 18. f4 {[%emt 0:02:03]} Rb8 {[%emt 0:01:08]} 19. Ba1 {[%emt 0:00:40]} Nb6 {[%emt 0:04:48]} 20. Qg4 {[%emt 0:08:10]} Bf8 {[%emt 0:04:00]} 21. Kh1 {[%emt 0:02:13]} Bc8 {[%emt 0:09:34]} 22. Qh5 {[%emt 0:03:09]} f5 {[%emt 0:00:27]} 23. exf5 {[%emt 0:02:03]} exf5 {[%emt 0:00:15]} 24. Qe2 {[%emt 0:02:55]} Qf7 {[%emt 0:09:53]} 25. Bxc6 {[%emt 0:04:55]} Bb7 {[%emt 0:00:22]} 26. Qf3 {[%emt 0:02:53]} Bxc6 {[%emt 0:01:34]} 27. Qxc6 {[%emt 0:00:06]} Rd6 {[%emt 0:00:53]} 28. Qb5 {[%emt 0:02:11]} Qh5 {[%emt 0:03:49]} 29. Kg2 {[%emt 0:04:09]} Rh6 {[%emt 0:00:51]} 30. h4 {[%emt 0:01:29]} Rg6 {[%emt 0:00:46]} 31. Rf1 {[%emt 0:04:38]} (31. Kf2 $17) 31... Qxh4 $19 {[%emt 0:01:42]} 32. Rf3 {[%emt 0:00:08] [#]} Qf6 {[%emt 0:01:40]} (32... Qg4 $142 $1 33. Rh1 Rd8) 33. Nd5 $17 {[%emt 0:04:48]} Qe6 {[%emt 0:05:13]} (33... Qc6 34. Qxc6 Rxc6 35. Ne3 Re8) 34. Ne3 {[%emt 0:04:24]} Rd8 {[%emt 0:01:29]} 35. Qxf5 {[%emt 0:04:36]} Qc6 {[%emt 0:00:12]} (35... Qxf5 36. Nxf5 Bb4 37. Ne3 Re6) 36. Rc2 $2 {[%emt 0:04:15]} (36. Qc2 $11) 36... Nd5 $2 {[%emt 0:01:58]} (36... Re6 $19 37. Kf2 Rh6) 37. Nxd5 $1 $15 {[%emt 0:01:02]} Rxd5 {[%emt 0:00:07]} 38. Qe4 {[%emt 0:00:22]} Rh6 {[%emt 0:03:09]} 39. f5 {[%emt 0:01:13]} Qb5 {[%emt 0:02:27]} 40. a4 {[%emt 0:01:32]} Qc6 {[%emt 0:01:35]} 41. Bb2 {[%emt 0:13:53]} Rf6 {[%emt 0:01:18]} 42. Bc1 {[%emt 0:02:19]} Rf7 {[%emt 0:04:20]} (42... Rfxf5 $2 43. Rxf5 Rd6 44. d5 $18 (44. Qxc6 Rxc6 45. Rxa5 Rc8 $18)) (42... Rfd6 43. Rfc3 Rxd4 44. Qxc6 Rxc6 45. Be3 Rg4) 43. Rfc3 {[%emt 0:09:56]} Rfxf5 {[%emt 0:04:57]} (43... Re7 $5 44. Qf3 $8 (44. Rxc4 $2 Qxc4 45. Rxc4 Rxe4 $19) 44... Qd7 45. Rxc4 Rxf5 $11) 44. Rxc4 {[%emt 0:00:27]} Qg6 {[%emt 0:00:04]} 45. Re2 {[%emt 0:01:23]} (45. Bf4 {simplifies} Rd8 46. Rc8 Rxc8 47. Rxc8 Qf7 48. Rc7) 45... Rd6 {[%emt 0:00:33]} 46. Qe8 {[%emt 0:04:29]} Rf7 {[%emt 0:01:23]} 47. Qe4 $1 {[%emt 0:00:38]} Re7 {[%emt 0:03:17]} 48. Qxg6 {[%emt 0:01:04]} Rxe2+ {[%emt 0:00:04]} 49. Kf3 {[%emt 0:00:14]} Rxg6 {[%emt 0:00:04]} 50. Kxe2 {[%emt 0:00:05]} Rxg3 {[%emt 0:00:01]} 51. Bd2 {[%emt 0:00:36]} Rg2+ {[%emt 0:01:41]} 52. Ke1 {[%emt 0:00:52]} h5 {[%emt 0:02:08]} 53. d5 {[%emt 0:00:45]} g5 {[%emt 0:06:23]} 54. Bxa5 {[%emt 0:00:26]} h4 {[%emt 0:00:03]} 55. Kf1 {[%emt 0:00:22]} h3 {[%emt 0:00:03]} 56. Bc7 {[%emt 0:00:17]} Rd2 {[%emt 0:00:34]} 57. Rc3 {[%emt 0:00:58]} g4 {[%emt 0:02:27]} (57... h2 $5 58. Rh3 $8 Rxd5 $11) 58. Rg3 $2 {[%emt 0:00:28]} (58. Rc4 $11) 58... Rd1+ {[%emt 0:00:45]} (58... Rxd5 59. Rxg4+ Kf7 60. Rf4+ Ke8 61. Rf3 $11) (58... Rd4 $1 $19 {[%cal Og8f7] is more deadly.} 59. a5 Kh7 (59... Rxd5 60. Rxg4+ Kf7 61. Ra4 $11)) 59. Ke2 {[%emt 0:00:24]} Rd4 {[%emt 0:00:03]} 60. Rd3 {[%emt 0:00:39]} Rxa4 {[%emt 0:00:29]} 61. Kf2 {[%emt 0:00:22]} Ra2+ {[%emt 0:00:30]} 62. Kg1 {[%emt 0:00:33]} Bc5+ {[%emt 0:01:49]} 63. Kh1 {[%emt 0:00:33]} Ra1+ {[%emt 0:05:33]} 64. Kh2 {[%emt 0:00:01] [#]} Bg1+ {[%emt 0:00:07]} (64... Bf2 $1 {And now ...Ra2 would win.} 65. Rd2 Bg1+ 66. Kg3 h2 67. Rxh2 Bxh2+ 68. Kxh2 Ra3) 65. Kg3 $17 {[%emt 0:00:01]} h2 {[%emt 0:00:08]} 66. Kg2 {[%emt 0:00:01]} h1=Q+ {[%emt 0:00:09]} 67. Kxh1 {[%emt 0:00:02]} Bb6+ {[%emt 0:00:05]} 68. Kg2 {[%emt 0:00:05]} Bxc7 {[%emt 0:00:09]} 69. d6 {[%emt 0:00:34]} Bd8 {[%emt 0:00:08]} 70. Rd4 {[%emt 0:00:19]} Kf7 {[%emt 0:00:47]} 71. Rxg4 {[%emt 0:00:10]} Rd1 {[%emt 0:00:14]} 72. Kf3 {[%emt 0:00:50]} Bf6 {[%emt 0:00:05]} 73. Ra4 {[%emt 0:00:34]} Ke6 {[%emt 0:00:33]} 74. d7 {[%emt 0:00:32]} Rxd7 {[%emt 0:00:26]} 75. Ra6+ {[%emt 0:01:20]} Kf5 {[%emt 0:00:05]} 76. Ra5+ {[%emt 0:00:24]} Be5 {[%emt 0:00:04]} 77. Ke3 {[%emt 0:00:15]} Rh7 {[%emt 0:00:01]} 78. Ra8 {[%emt 0:00:51]} Rh3+ {[%emt 0:00:04]} 79. Kd2 {[%emt 0:00:48]} Ke4 {[%emt 0:00:03]} 80. Kc2 {[%emt 0:00:59]} Rh2+ {[%emt 0:01:28]} 81. Kb3 {[%emt 0:00:47]} Rb2+ {[%emt 0:00:48]} 82. Kc4 {[%emt 0:00:17]} Rc2+ {[%emt 0:00:02]} 83. Kb4 {[%emt 0:00:59]} Bd6+ {[%emt 0:01:11]} 84. Kb3 {[%emt 0:00:21]} Kd3 {[%emt 0:00:03]} 85. Ra7 {[%emt 0:00:43]} Rc3+ {[%emt 0:01:52]} 86. Kb2 {[%emt 0:00:34]} Rc6 {[%emt 0:01:39]} 87. Rb7 {[%emt 0:00:21]} Be5+ {[%emt 0:00:44]} 88. Kb3 {[%emt 0:00:38]} Rc1 {[%emt 0:00:02]} 89. Ka4 {[%emt 0:00:13]} Bd4 {[%emt 0:00:27]} 90. Rb3+ {[%emt 0:00:19]} (90. Kb5 $11) 90... Kc4 $15 {[%emt 0:00:15]} 91. Rb4+ {[%emt 0:00:23]} Kd5 {[%emt 0:00:03]} ({Better is} 91... Kc5 $1 $15 92. Rb5+ Kc6) 92. Kb5 $1 $11 {[%emt 0:00:41]} Rc8 {[%emt 0:01:02]} 93. Ka4 {[%emt 0:00:38]} Bc5 {[%emt 0:00:34]} 94. Rb5 {[%emt 0:00:41]} (94. Rb7 $11) 94... Ra8+ $17 {[%emt 0:00:11]} 95. Ra5 {[%emt 0:00:13]} Rg8 {[%emt 0:00:03]} 96. Rb5 {[%emt 0:00:27]} Rg4+ {[%emt 0:00:13]} 97. Ka5 {[%emt 0:00:51]} Kc6 {[%emt 0:03:17]} (97... Rg7 $17 {[%cal Rg7a7]} 98. Ka4 Kc6) 98. Ka6 $11 {[%emt 0:00:10]} Ra4+ {[%emt 0:00:10]} (98... Rg7 $2 99. Rb6+ Kd5 100. Rb7 $19) 99. Ra5 {[%emt 0:00:06]} Rb4 {[%emt 0:00:03]} 100. Rb5 $1 {[%emt 0:00:43]} Ra4+ {[%emt 0:00:04]} 101. Ra5 {[%emt 0:00:04]} Rh4 {[%emt 0:00:33]} 102. Rb5 $1 {[%emt 0:00:10]} Rh8 {[%emt 0:01:32]} (102... Rh7 $2 103. Rb6+ Kd5 104. Rb7 Rh6+ 105. Kb5 $19) 103. Rb6+ $1 {[%emt 0:00:12]} Kd5 {[%emt 0:00:04]} 104. Rb7 {[%emt 0:00:40]} Kc4 {[%emt 0:00:29]} (104... Kc6 $2 105. Rb6+ Kd5 106. Rb7 $19) 105. Rd7 {[%emt 0:00:44]} Rb8 {[%emt 0:00:21]} 106. Rc7 {[%emt 0:01:20]} Rb1 {[%emt 0:01:05]} 107. Rc6 {[%emt 0:00:55]} Ra1+ {[%emt 0:00:52]} 108. Kb7 {[%emt 0:00:05]} Ra7+ {[%emt 0:01:13]} 109. Kc8 {[%emt 0:00:07]} Rg7 {[%emt 0:01:13]} 110. Rc7 {[%emt 0:00:19]} Rg6 {[%emt 0:00:07]} 111. Rd7 {[%emt 0:00:38]} Bd6 {[%emt 0:00:06]} 112. Rd8 {[%emt 0:00:51]} Kd5 {[%emt 0:00:08]} 113. Rd7 {[%emt 0:00:25]} Rg8+ {[%emt 0:00:11]} 114. Rd8 {[%emt 0:00:37]} Rg2 {[%emt 0:00:05]} 115. Rd7 {[%emt 0:00:25]} (115. Kb7 Rb2+ 116. Ka6 Kc6 117. Rc8+ Bc7 118. Rxc7+ Kxc7 119. Ka5 Kc6 120. Ka4 Kd5 121. Ka3 Rb5 122. Ka4 Kc4 123. Ka3 Kc3 124. Ka2 Ra5+ 125. Kb1 Ra8 126. Kc1 Ra1#) 115... Ra2 {[%emt 0:01:16]} 116. Rb7 {[%emt 0:00:47]} Ke6 {[%emt 0:00:18]} (116... Kc6 $2 117. Rc7+ Kd5 118. Rf7 $19) 117. Rb5 {[%emt 0:00:33]} Ra7 {[%emt 0:00:04]} 118. Rb6 {[%emt 0:00:42]} Rc7+ {[%emt 0:01:25]} 119. Kb8 {[%emt 0:00:20]} Kd5 {[%emt 0:00:01]} 120. Ka8 {[%emt 0:00:29]} Rh7 {[%emt 0:01:42]} 121. Rb7 {[%emt 0:00:22]} Rh1 {[%emt 0:00:38]} 122. Rb6 {[%emt 0:00:40]} Kc5 {[%emt 0:00:01]} 123. Ra6 {[%emt 0:00:30]} Rh7 {[%emt 0:00:33]} 124. Ra4 {[%emt 0:00:23]} Rh8+ {[%emt 0:00:23]} (124... Kb6 $2 125. Ra6+ $19) 125. Kb7 {[%emt 0:00:42]} Kb5 126. Rg4 {[%emt 0:00:08]} 1/2-1/2

[Event "Reykjavik Open 2025"]
[Site "Reykjavik"]
[Date "2025.04.10"]
[Round "3.40"]
[White "Zierk, Steven"]
[Black "Gajcin, Marina"]
[Result "1-0"]
[Annotator "TA"]
[ECO "B30"]
[WhiteElo "2501"]
[BlackElo "2217"]
[PlyCount "109"]
[EventDate "2025.04.09"]
[EventType "swiss"]
[EventCountry "ISL"]
[SourceTitle "playchess.com"]
[Source "ChessBase"]
[SourceQuality "1"]
[TimeControl "40/5400+30:1800+30"]

{[%evp 9,109,33,41,27,22,18,22,7,30,13,19,12,31,30,29,25,33,30,40,16,31,-26,7,-67,-73,-50,-66,-80,-66,-77,-60,-43,-68,-132,-121,-121,-116,-140,-66,-79,-22,-118,-118,-107,-100,-148,-84,-120,-106,-217,-46,-25,-61,-50,-26,-87,18,15,19,16,9,10,272,119,108,-43,-54,-53,344,270,744,682,469,770,770,738,778,756,761,749,749,694,593,587,588,564,576,551,1552,1614,29973,29973,29974,29975,29968,29968,29978,29979,29979,29980,29974,29975]} 1. e4 {[%emt 0:00:03]} c5 {[%emt 0:00:11]} 2. Nf3 {[%emt 0:00:11]} Nc6 {[%emt 0:00:05]} 3. Bb5 {[%emt 0:00:08]} Nf6 {[%emt 0:00:19]} 4. Bxc6 {[%emt 0:00:14]} dxc6 {[%emt 0:00:03]} 5. d3 {[%emt 0:00:08]} Qc7 {[%emt 0:05:11]} 6. Nbd2 {[%emt 0:01:31][%cal Bb1d2,Bd2f1,Bf1e3][%mdl 32] B30: Sicilian: 2...Nc6 3 Bb5, lines without ...g6.} e5 {[%emt 0:06:51]} 7. O-O {[%emt 0:02:23]} b5 $146 {[%emt 0:04:44]} (7... Be6 8. a4 h6 9. b3 Be7 10. Bb2 Nd7 11. Nc4 Bf6 12. Nfd2 g5 13. Ne3 O-O-O {0-1 Volokitin,A (2643)-Ter Sahakyan,S (2611) Chessable Masters Play In blitz 2025 (9)}) 8. b3 {[%emt 0:10:02] The position is equal.} Be7 {[%emt 0:06:17]} 9. Bb2 {[%emt 0:10:37]} Nd7 {[%emt 0:01:04]} 10. Re1 {[%emt 0:05:39]} Rb8 {[%emt 0:08:10]} 11. Nf1 {[%emt 0:01:59]} O-O {[%emt 0:09:06]} 12. Ne3 {[%emt 0:00:47]} Re8 {[%emt 0:04:19]} 13. a4 {[%emt 0:01:11]} a6 {[%emt 0:02:00]} 14. Kh1 {[%emt 0:04:47]} f6 {[%emt 0:08:34]} 15. g4 {[%emt 0:02:32]} (15. axb5 $1 $14 axb5 16. Nf5) 15... c4 {[%emt 0:11:23]} 16. dxc4 {[%emt 0:05:28]} (16. axb5 $11 cxd3 17. bxa6) 16... bxa4 $15 {[%emt 0:00:24]} 17. Rxa4 {[%emt 0:05:12]} Nc5 {[%emt 0:00:41][%csl LRa4,LRe4]} 18. Ra1 {[%emt 0:00:58]} Nxe4 {[%emt 0:02:18]} 19. Qe2 {[%emt 0:01:03]} Bc5 {[%emt 0:01:00]} 20. Rg1 {[%emt 0:03:53]} Qb6 {[%emt 0:04:58][%cal Oe4f2]} 21. Rae1 {[%emt 0:01:07]} (21. Nd1 $15 Nxf2+ 22. Nxf2 Bxf2 23. Rg2) 21... Bxe3 $17 {[%emt 0:04:35]} 22. fxe3 {[%emt 0:00:08]} c5 {[%emt 0:00:13]} 23. h3 {[%emt 0:01:45]} Qe6 {[%emt 0:02:42]} (23... a5 $17 24. Ra1 Bb7) 24. Kh2 {[%emt 0:01:56] [#]} h5 {[%emt 0:02:15]} 25. Qf1 {[%emt 0:07:39]} (25. Qd3 $11) 25... hxg4 {[%emt 0:01:06]} 26. Rxg4 {[%emt 0:00:35][%cal Of1g2]} Qc6 {[%emt 0:03:10]} 27. Rg1 {[%emt 0:02:35]} (27. Rg6 $142) 27... Bb7 {[%emt 0:03:35]} (27... g5 $142 28. Qg2 Qe6) 28. Re2 {[%emt 0:03:15]} Rbd8 {[%emt 0:00:11] Against Nd2} 29. Nh4 {[%emt 0:03:21] [#]} (29. Bc1 $17 {was necessary.}) 29... Ng5 $2 {[%emt 0:02:35]} (29... g5 $1 $19 30. Qf5 Qd7 31. Qg6+ Qg7) 30. e4 $1 $15 {[%emt 0:00:41]} Nxe4 {[%emt 0:02:50]} 31. Bc1 {[%emt 0:00:30] Wards off Ng5} Rd7 {[%emt 0:02:20]} 32. Nf5 {[%emt 0:09:49] [#]} (32. Qf5 $11 {remains equal.} Qe6 33. Qg6) 32... Ng5 {[%emt 0:01:07]} 33. Bxg5 $11 {[%emt 0:01:03]} fxg5 {[%emt 0:00:03]} 34. Rxg5 {[%emt 0:00:05]} Qf6 {[%emt 0:01:49]} 35. h4 {[%emt 0:01:16]} Rd4 $2 {[%emt 0:00:41][%mdl 8192]} (35... Red8 $11 {and Black stays safe.}) 36. Qg1 {[%emt 0:09:35]} (36. Rxg7+ $18 {and White stays clearly on top.} Kf8 37. Rf2 (37. Rxb7 Rxh4+ 38. Nxh4 Qxf1 $11)) 36... Rf4 $16 {[%emt 0:00:08]} 37. Rf2 $2 {[%emt 0:02:05] White is more active.} (37. Nxg7 $2 Rxh4+ 38. Kg3 Qf4#) (37. Rxg7+ $16 Kh8 38. Qg5 (38. Rxb7 $2 Rxf5 39. Qg4 Rg8 $19) 38... Rxf5 39. Qxf6 (39. Rxb7 $2 Rxg5 40. hxg5 Qf4+ 41. Kg1 Rd8 $19) 39... Rxf6 40. Rxb7) 37... Rxf2+ $15 {[%emt 0:00:40]} 38. Qxf2 {[%emt 0:00:02]} Rf8 $2 {[%emt 0:00:41][%mdl 8192]} (38... Be4 $1 $15 {keeps the upper hand.} 39. Rxg7+ Kh8) 39. Qxc5 {[%emt 0:01:51] And now Ne7+ would win.} (39. Rxg7+ $2 Qxg7 40. Qg3 Rxf5 $19) 39... Be4 $2 {[%emt 0:00:15]} (39... Rf7 40. Qd6 Qxd6 41. Nxd6 Re7 42. Nxb7 Rxb7 43. Rxe5 Rd7) 40. Ne7+ $18 {[%emt 0:00:34]} (40. Rxg7+ Kh8 41. Re7 Bxf5 (41... Qxf5 42. Qxe5+ Qxe5+ 43. Rxe5 $17) 42. Qxe5 Qxe5+ (42... Bxc2 43. Qxf6+ Rxf6 44. b4 $15) 43. Rxe5 Bxc2 $19) 40... Kf7 {[%emt 0:01:19]} 41. Nd5 {[%emt 0:04:16] Prevents Qf4+.} (41. Rxe5 Qxh4+ (41... Bxc2 42. Qd5+ Ke8 43. Nf5+) 42. Kg1 Qe1+ (42... Bxc2 43. Qd5+ Ke8 44. Ng8+) 43. Kh2 Rh8+ 44. Rh5 g5 45. Qxg5 Qf2+ 46. Kh3 Bg2+ 47. Kh2 Bc6+ 48. Kh3 Bd7+) 41... Qh6 {[%emt 0:06:09]} 42. Kg3 {[%emt 0:00:58] Intending Qf2+ and mate.} (42. Rxe5 {leads to mate.} Qxh4+ (42... Bxc2 $2 {loses.} 43. Qf2+ Kg8 44. Ne7+ Kh7 45. Qxc2+ $18) 43. Kg1 Qe1+ (43... Bxc2 44. Qe7+ Qxe7 45. Rxe7+ Kg8 46. Re3 $14) 44. Kh2 Rh8+) 42... Kg8 {[%emt 0:08:09]} 43. Ne7+ {[%emt 0:05:08]} (43. Rxe5 Rf3+ 44. Kg4 Qg6+ 45. Rg5 Qe6+ 46. Kh5 Qe8+ 47. Kg4 Qd7+ 48. Kh5 g6+ (48... Bxc2 49. Qe7 $11) 49. Rxg6+ Bxg6+ 50. Kxg6 Qg7+ 51. Kh5 Rf5#) 43... Kh7 {[%emt 0:01:15]} 44. Qxe5 {[%emt 0:00:59]} Rf3+ {[%emt 0:00:31]} 45. Kg4 {[%emt 0:01:13]} Re3 {[%emt 0:00:06]} 46. Nf5 {[%emt 0:01:04]} Bf3+ {[%emt 0:00:49]} 47. Kf4 {[%emt 0:00:20]} Rxe5 {[%emt 0:01:37]} 48. Nxh6 {[%emt 0:00:07]} Rxg5 {[%emt 0:01:29]} 49. hxg5 {[%emt 0:00:07][%mdl 4096] Endgame KB-KN. White is two pawns up.} Bd1 {[%emt 0:00:32]} 50. Nf5 {[%emt 0:00:22] White mates.} Bxc2 {[%emt 0:00:16]} 51. Nd4 {[%emt 0:00:08]} Bd3 {[%emt 0:03:23]} 52. c5 {[%emt 0:00:06][%cal Bc4c5,Bc5c6][%mdl 32]} Bf1 {[%emt 0:00:52]} 53. c6 {[%emt 0:00:14]} Kg6 {[%emt 0:00:38]} 54. Nf5 {[%emt 0:00:27]} Bh3 {[%emt 0:00:23]} 55. Nd6 {[%emt 0:00:09] What a bad dream for Black.   Weighted Error Value: White=0.27 (precise) /Black=0.56  Loses game:     	---       	Black=2      Missed win:     	---       	Black=1      Mistake:       	White=9     	Black=5      Inaccurate:     	White=1     	Black=3      OK:         	White=9     	Black=16     Best:        	White=3     	Black=5      Strong:       	White=1     	---} 1-0

[Event "Reykjavik Open 2025"]
[Site "Reykjavik"]
[Date "2025.04.10"]
[Round "3.41"]
[White "Nissinen, Niilo Man"]
[Black "Bailet, Pierre"]
[Result "1/2-1/2"]
[Annotator "TA"]
[ECO "C48"]
[WhiteElo "2268"]
[BlackElo "2495"]
[PlyCount "71"]
[EventDate "2025.04.09"]
[EventType "swiss"]
[EventCountry "ISL"]
[SourceTitle "playchess.com"]
[Source "ChessBase"]
[SourceQuality "1"]
[TimeControl "40/5400+30:1800+30"]

{[%evp 14,71,-8,0,2,4,8,14,4,8,13,17,0,10,11,0,0,-26,-46,-38,-35,-44,-41,-57,-70,-69,-18,-39,37,37,96,86,107,60,60,50,54,27,45,43,66,56,77,63,85,38,41,0,27,12,35,0,6,0,0,0,0,0,2,0]} 1. e4 {[%emt 0:00:47]} e5 {[%emt 0:00:31]} 2. Nf3 {[%emt 0:00:15]} Nc6 {[%emt 0:00:13]} 3. Nc3 {[%emt 0:00:26]} Nf6 {[%emt 0:00:41]} 4. Bb5 {[%emt 0:00:23]} Bc5 {[%emt 0:03:27]} 5. O-O {[%emt 0:00:23]} O-O {[%emt 0:02:47]} 6. Nxe5 {[%emt 0:00:18]} Nxe5 {[%emt 0:00:18]} 7. d4 {[%emt 0:00:14]} Bd6 {[%emt 0:00:08]} 8. f4 {[%emt 0:00:28]} Nc6 {[%emt 0:13:49] C48: Four Knights: 4 Bb5, replies other than 4...Bb4.} 9. e5 {[%emt 0:00:18]} Be7 {[%emt 0:02:09] A sharp opening} 10. exf6 {[%emt 0:00:23]} Bxf6 {[%emt 0:00:07]} 11. d5 {[%emt 0:00:35]} Ne7 {[%emt 0:05:27]} 12. Ne4 {[%emt 0:19:03] [#]} (12. Bc4 $5) 12... Nxd5 {[%emt 0:03:23]} 13. Qxd5 {[%emt 0:00:17]} c6 $1 {[%emt 0:00:13]} 14. Qd3 {[%emt 0:03:48]} cxb5 {[%emt 0:01:43]} 15. Qxb5 {[%emt 0:01:53]} Bd4+ {[%emt 0:03:06]} 16. Kh1 {[%emt 0:00:26]} d5 {[%emt 0:00:10]} 17. Ng3 {[%emt 0:03:51]} Qb6 {[%emt 0:17:22]} 18. Qxd5 $146 {[%emt 0:04:11]} (18. Qd3 Bd7 19. a4 Rfe8 20. f5 Be5 21. c3 Qb3 22. Bf4 Bxf4 23. Rxf4 Qxb2 24. Rb1 {½-½ Perez Candelario,M (2516)-Rodriguez Cespedes,A (2453) ESP-chT Honor Gp2 2009 (2)}) 18... Be6 {[%emt 0:05:56] This pair of bishops is nice.} (18... Bxb2 19. Bxb2 Qxb2 20. f5 $11) 19. Qf3 {[%emt 0:05:33]} Rad8 {[%emt 0:03:07]} (19... Bxb2 $2 20. Rb1 $18) (19... Bc4 $1 $15 20. Rd1 Rad8) 20. c3 $11 {[%emt 0:02:58]} Bf6 {[%emt 0:03:41]} ({Black should play} 20... Bd5 $1 $15 21. Qg4 Qc6 22. cxd4 Bxg2+ 23. Kg1 Bxf1 24. Nxf1 (24. Nf5 Qf6 $17) 24... Rxd4) 21. Nh5 $14 {[%emt 0:02:24]} Bc4 {[%emt 0:03:47]} (21... Bd5 $14 22. Qg3 Rfe8 23. Nxf6+ Qxf6) 22. Be3 $16 {[%emt 0:03:57]} Qa6 {[%emt 0:04:00] [#]} 23. Nxf6+ {[%emt 0:04:41]} ({White should play} 23. Rfe1 $1 $16) 23... Qxf6 $14 {[%emt 0:00:07]} 24. Rfd1 {[%emt 0:01:20]} b6 {[%emt 0:03:39]} 25. f5 {[%emt 0:10:00]} Rxd1+ {[%emt 0:13:54]} 26. Rxd1 {[%emt 0:00:15]} Bxa2 {[%emt 0:01:56] Black is weak on the dark squares} 27. Ra1 {[%emt 0:03:18]} Bc4 {[%emt 0:01:10]} 28. Rxa7 {[%emt 0:01:52]} h6 {[%emt 0:00:16]} 29. Qe4 {[%emt 0:05:03] White is much more active.} (29. Bd4 $16 Qg5 30. Be3 (30. Bxb6 Rb8 $16)) 29... b5 {[%emt 0:02:52]} 30. h4 {[%emt 0:04:19]} Qd6 {[%emt 0:04:05]} (30... Bd3 $5 31. Qxd3 Qxh4+ 32. Kg1 Qe1+ 33. Kh2 Qh4+ 34. Kg1 $11) 31. Bd4 {[%emt 0:06:43] and Qg4 should not be overlooked} f6 {[%emt 0:00:01]} 32. Qg4 {[%emt 0:02:27][%csl Ga7][%cal Rg4g7]} Rf7 {[%emt 0:00:07] Successful Defense Black. The position is equal.} 33. Ra8+ {[%emt 0:02:14]} Rf8 {[%emt 0:00:04]} 34. Ra7 {[%emt 0:02:29][%csl Ga7][%cal Rg4g7]} Rf7 {[%emt 0:00:05]} 35. Ra8+ {[%emt 0:05:00]} Rf8 {[%emt 0:00:02]} 36. Ra7 {[%emt 0:00:43] Weighted Error Value: White=0.13 (very precise) /Black=0.14 (very precise)   Mistake:       	White=2     	Black=3      Inaccurate:     	White=4     	Black=1      OK:         	White=6     	Black=8      Best:        	White=2     	Black=5      Strong:       	---       	Black=1} 1/2-1/2

[Event "Reykjavik Open 2025"]
[Site "Reykjavik"]
[Date "2025.04.10"]
[Round "3.42"]
[White "Royal, Shreyas"]
[Black "Gislason, Gudmundur"]
[Result "1-0"]
[Annotator "RC"]
[ECO "E97"]
[WhiteElo "2465"]
[BlackElo "2216"]
[PlyCount "49"]
[EventDate "2025.04.09"]
[EventType "swiss"]
[EventCountry "ISL"]
[SourceTitle "playchess.com"]
[Source "ChessBase"]
[SourceQuality "1"]
[TimeControl "40/5400+30:1800+30"]

1. d4 {[%emt 0:00:03]} Nf6 {[%emt 0:00:08]} 2. c4 {[%emt 0:00:06]} g6 {[%emt 0:00:07]} 3. Nc3 {[%emt 0:00:05]} Bg7 {[%emt 0:00:08]} 4. e4 {[%emt 0:00:04]} d6 {[%emt 0:00:09]} 5. Be2 {[%emt 0:00:04]} O-O {[%emt 0:00:15]} 6. Nf3 {[%emt 0:00:14]} e5 {[%emt 0:00:37]} 7. O-O {[%emt 0:00:08]} Nc6 {[%emt 0:00:08]} 8. d5 {[%emt 0:00:04]} Ne7 {[%emt 0:00:07]} 9. b4 {[%emt 0:00:42]} Nh5 {[%emt 0:06:05]} 10. Re1 {[%emt 0:00:14]} Nf4 {[%emt 0:11:46]} 11. Bf1 {[%emt 0:00:13]} f5 {[%emt 0:01:05]} 12. Bxf4 {[%emt 0:04:25]} exf4 {[%emt 0:00:11]} 13. e5 {[%emt 0:00:09]} a5 {[%emt 0:12:33]} 14. Qb3 {[%emt 0:04:07]} Kh8 {[%emt 0:12:12]} 15. Rad1 {[%emt 0:04:22]} dxe5 {[%emt 0:30:10]} 16. Nxe5 {[%emt 0:00:15]} g5 {[%emt 0:00:18]} 17. c5 {[%emt 0:00:52]} axb4 {[%emt 0:10:07]} 18. Qxb4 {[%emt 0:01:51]} Bxe5 {[%emt 0:01:05]} 19. Rxe5 {[%emt 0:00:09]} Ng6 {[%emt 0:00:12]} 20. Ree1 {[%emt 0:01:16]} Qf6 {[%emt 0:02:15]} 21. d6 {[%emt 0:00:49]} cxd6 {[%emt 0:00:51]} 22. cxd6 {[%emt 0:01:04]} Bd7 {[%emt 0:03:52]} 23. Qxb7 {[%emt 0:04:51]} Qxc3 {[%emt 0:00:28]} 24. Qxd7 {[%emt 0:00:06]} Rxa2 {[%emt 0:00:33]} 25. Re7 {[%emt 0:00:38]} 1-0